bitfinex-derivatives/quotes_SOLF0:USTF0_20251210
["timestamp","ask_amount","ask_price","bid_price","bid_amount"]
[1765402525952,0.05487327,137.29,137.27,0.05244772]
[1765402526154,0.05487327,137.29,137.27,3.25244772]
[1765402528459,0.05487327,137.29,137.27,0.05244772]
[1765402529056,6.60867327,137.29,137.27,0.05244772]
[1765402529866,101.9604,137.27,137.21,3.2]
[1765402530761,0.05432368,137.25,137.23,0.05221842]
[1765402531862,0.05432368,137.25,137.23,3.25221842]
[1765402533555,0.05432368,137.25,137.23,0.05221842]
[1765402533955,0.05432368,137.25,137.23,3.10221842]
[1765402534857,0.05432368,137.25,137.24,3.05]
[1765402535166,0.05432368,137.25,137.23,6.60841842]
[1765402535167,0.05432368,137.25,137.23,3.10221842]
[1765402535561,0.05432368,137.25,137.23,0.05221842]
[1765402535860,0.05432368,137.25,137.17,3.05]
[1765402535861,102.03212368,137.25,137.17,3.05]
[1765402536061,101.9778,137.25,137.17,3.05]
[1765402536259,6.5573,137.22,137.18,3.05]
[1765402536868,0.04926658,137.21,137.19,0.04647778]
[1765402538364,6.60696658,137.21,137.19,0.04647778]
[1765402542660,0.04926658,137.21,137.19,3.09647778]
[1765402543061,9.85609759,137.26,137.19,3.09647778]
[1765402543266,101.9648,137.27,137.19,3.09647778]
[1765402543864,6.5561,137.24,137.19,9.65477778]
[1765402544069,0.05015201,137.23,137.2,3.05]
[1765402544265,0.04662877,137.23,137.2,3.10337899]
[1765402545968,0.04662877,137.23,137.21,3.05]
[1765402547764,6.5549,137.27,137.22,3.05]
[1765402547971,111.78079759,137.32,137.22,3.05]
[1765402548170,9.85609759,137.32,137.23,3.05]
[1765402548366,101.9101,137.34,137.23,3.05]
[1765402548561,6.5525,137.32,137.23,3.05]
[1765402548762,101.9101,137.34,137.23,3.05]
[1765402548763,0.05159002,137.29,137.26,3.1017489]
[1765402552779,6.5514,137.34,137.29,3.05]
[1765402553670,0.05229617,137.33,137.3,3.09642297]
[1765402554267,9.85609759,137.41,137.33,3.05]
[1765402554483,6.549,137.39,137.33,3.05]
[1765402555267,0.05580456,137.37,137.35,3.10472342]
[1765402555882,0.05580456,137.37,137.35,0.05472342]
[1765402556284,0.05580456,137.37,137.35,3.10472342]
[1765402556668,0.05580456,137.37,137.35,0.05472342]
[1765402557173,6.60570456,137.37,137.35,0.05472342]
[1765402557681,0.05580456,137.37,137.35,3.10472342]
[1765402558081,0.05580456,137.37,137.35,0.05472342]
[1765402558781,6.60580456,137.37,137.35,0.05472342]
[1765402559880,0.05580456,137.37,137.35,3.10472342]
[1765402560382,101.8372,137.44,137.35,3.10472342]
[1765402560580,101.8515,137.42,137.35,3.05]
[1765402561380,0.05279061,137.4,137.37,0.05105897]
[1765402561681,6.5489,137.39,137.37,0.05105897]
[1765402563279,0.05279061,137.4,137.37,0.05105897]
[1765402565083,6.5489,137.39,137.37,0.05105897]
[1765402565993,6.5489,137.39,137.27,6.76731742]
[1765402565994,101.8962,137.36,137.27,9.91731742]
[1765402566181,173.56209759,137.35,137.27,3.15]
[1765402566781,6.5523,137.32,137.27,3.15]
[1765402566984,0.05375803,137.31,137.28,3.20003757]
[1765402567287,0.05164344,137.31,137.28,3.19940062]
[1765402567488,0.05164344,137.31,137.3,3.15]
[1765402567881,0.05164344,137.31,137.28,3.19940062]
[1765402568680,0.05164344,137.31,137.28,0.04940062]
[1765402569081,6.5532,137.3,137.28,0.04940062]
[1765402569785,0.05164344,137.31,137.28,3.19940062]
[1765402569993,0.05164344,137.31,137.28,0.04940062]
[1765402572694,0.05164344,137.31,137.28,3.19940062]
[1765402575690,0.05164344,137.31,137.28,9.75340062]
[1765402575892,0.05164344,137.31,137.29,3.24]
[1765402576999,0.05164344,137.31,137.3,3.24]
[1765402578391,61.8,137.36,137.3,9.793]
[1765402579389,0.04779109,137.34,137.3,9.793]
[1765402579590,0.04779109,137.34,137.32,0.05585664]
[1765402579903,0.04779109,137.34,137.32,3.29585664]
[1765402580603,6.59899109,137.34,137.32,3.29585664]
[1765402580789,6.59899109,137.34,137.32,0.05585664]
[1765402581994,6.59899109,137.34,137.32,3.29585664]
[1765402582602,0.04779109,137.34,137.32,3.29585664]
[1765402583505,6.59899109,137.34,137.32,3.29585664]
[1765402583902,6.59899109,137.34,137.32,0.05585664]
[1765402589006,6.5517,137.33,137.32,0.05585664]
[1765402590611,6.5537,137.29,137.26,10.00731742]
[1765402590804,6.5537,137.29,137.26,3.24]
[1765402591204,6.5537,137.29,137.26,10.00731742]
[1765402591405,6.5531,137.3,137.27,3.24]
[1765402591606,6.60264979,137.3,137.27,3.28909074]
[1765402591809,0.04954979,137.3,137.27,3.28909074]
[1765402592406,6.5537,137.29,137.27,3.28909074]
[1765402593409,6.5541,137.28,137.27,0.04909074]
[1765402593610,0.04954979,137.3,137.27,0.04909074]
[1765402594111,6.5536,137.29,137.27,0.04909074]
[1765402594311,0.04954979,137.3,137.27,0.04909074]
[1765402594702,6.5541,137.28,137.27,0.04909074]
[1765402594908,12.20830783,137.28,137.27,0.04909074]
[1765402596309,12.20830783,137.28,137.2,9.02492503]
[1765402596310,101.9627,137.27,137.2,6.76731742]
[1765402596514,5.65420783,137.25,137.19,10.10731742]
[1765402596710,6.5575,137.21,137.19,6.76731742]
[1765402596919,5.65420783,137.22,137.16,6.76731742]
[1765402597113,5.65420783,137.22,137.15,10.10731742]
[1765402597315,0.05479634,137.2,137.17,0.04613975]
[1765402597923,0.05479634,137.2,137.17,3.38613975]
[1765402599210,0.05479634,137.2,137.17,10.15338055]
[1765402599617,0.05479634,137.2,137.18,3.34]
[1765402599921,0.05479634,137.2,137.18,9.8987]
[1765402600218,0.05479634,137.2,137.19,3.34]
[1765402607228,107.58830783,137.31,137.2,3.34]
[1765402607428,107.58830783,137.31,137.22,3.34]
[1765402607630,107.58830783,137.31,137.24,3.34]
[1765402608128,0.05349945,137.29,137.26,0.04845419]
[1765402608533,0.05349945,137.29,137.26,3.38845419]
[1765402613947,0.05349945,137.29,137.28,3.34]
[1765402615131,0.05349945,137.29,137.26,3.38845419]
[1765402615336,0.05349945,137.29,137.26,0.04845419]
[1765402616346,6.5542,137.28,137.26,0.04845419]
[1765402620451,6.5569,137.22,137.2,3.34]
[1765402621359,0.04744606,137.22,137.2,0.05603018]
[1765402621944,6.60434606,137.22,137.2,0.05603018]
[1765402623142,6.60434606,137.22,137.2,3.39603018]
[1765402623345,6.60434606,137.22,137.2,0.05603018]
[1765402623953,6.60434606,137.22,137.2,3.39603018]
[1765402624748,0.04744606,137.22,137.2,3.39603018]
[1765402625152,5.65420783,137.28,137.2,3.39603018]
[1765402625153,6.5543,137.28,137.24,3.34]
[1765402625746,101.9338,137.31,137.24,3.34]
[1765402625952,101.9546,137.28,137.21,71.98830249]
[1765402626152,0.04899671,137.26,137.23,0.05368772]
[1765402626352,6.5557,137.25,137.23,0.05368772]
[1765402626555,0.04899671,137.26,137.19,3.34]
[1765402626556,102.02019671,137.26,137.19,3.34]
[1765402627462,102.02019671,137.26,137.21,0.05385]
[1765402627859,101.9778,137.25,137.21,0.05385]
[1765402628354,6.5568,137.23,137.21,0.05385]
[1765402628560,102.0051,137.21,137.14,6.76830249]
[1765402628761,102.0138,137.2,137.13,10.10830249]
[1765402629152,107.65930783,137.21,137.13,3.34]
[1765402629349,107.65930783,137.21,137.13,10.10830249]
[1765402629552,0.05434962,137.18,137.16,0.04917691]
[1765402630155,0.05434962,137.18,137.16,3.40917691]
[1765402638856,101.9703,137.26,137.17,10.12830249]
[1765402639060,101.9703,137.26,137.18,3.36]
[1765402639769,101.9703,137.26,137.21,0.05165513]
[1765402639961,6.60744702,137.23,137.21,0.05165513]
[1765402642673,6.60744702,137.23,137.21,3.41165513]
[1765402643068,6.60744702,137.23,137.21,0.05165513]
[1765402647882,0.05054702,137.23,137.21,3.41165513]
[1765402648271,0.05054702,137.23,137.21,9.96905513]
[1765402648576,9.85987535,137.3,137.21,3.41165513]
[1765402648773,9.85987535,137.3,137.21,3.36]
[1765402649369,0.05178477,137.27,137.24,3.40686916]
[1765402649571,0.05178477,137.27,137.24,0.04686916]
[1765402650372,6.5551,137.26,137.24,0.04686916]
[1765402656667,101.9775,137.25,137.17,12.09440332]
[1765402656883,111.83737535,137.25,137.18,3.07]
[1765402657073,101.9828,137.24,137.18,3.07]
[1765402657670,0.05322891,137.22,137.2,3.11869816]
[1765402657872,6.5574,137.21,137.2,0.04869816]
[1765402658278,0.05322891,137.22,137.2,0.04869816]
[1765402658476,6.61012891,137.22,137.2,0.04869816]
[1765402658880,6.61012891,137.22,137.2,3.11869816]
[1765402660679,6.61012891,137.22,137.2,0.04869816]
[1765402660883,6.5574,137.21,137.2,0.04869816]
[1765402661385,0.05322891,137.22,137.2,3.11869816]
[1765402663184,101.9404,137.3,137.22,3.07]
[1765402663376,61.86,137.32,137.24,3.07]
[1765402663577,101.9098,137.34,137.24,12.09440332]
[1765402663879,31.70987535,137.37,137.27,3.07]
[1765402664079,31.70987535,137.37,137.3,0.05025678]
[1765402664080,0.05485405,137.32,137.3,0.05025678]
[1765402664274,0.05485405,137.32,137.3,3.12025678]
[1765402666096,6.60715405,137.32,137.3,0.05025678]
[1765402667800,0.05485405,137.32,137.3,0.05025678]
[1765402667996,0.05485405,137.32,137.3,3.12025678]
[1765402669692,0.05485405,137.32,137.3,9.67315678]
[1765402669998,0.05485405,137.32,137.31,3.07]
[1765402670196,61.86,137.38,137.31,9.6224]
[1765402670397,61.86,137.38,137.32,3.07]
[1765402671293,0.05033401,137.36,137.34,3.11617543]
[1765402671495,0.04985554,137.36,137.34,3.11617543]
[1765402671903,111.71027535,137.42,137.34,3.11617543]
[1765402672397,101.8504,137.42,137.34,3.11617543]
[1765402672902,0.04857316,137.39,137.34,9.66727543]
[1765402673096,0.04857316,137.39,137.35,3.07]
[1765402674001,101.8202,137.46,137.35,3.07]
[1765402674194,101.8142,137.47,137.37,3.07]
[1765402674503,101.8047,137.48,137.4,3.07]
[1765402674701,101.8202,137.46,137.4,3.07]
[1765402674907,101.8202,137.46,137.37,3.07]
[1765402675102,0.04177719,137.43,137.4,3.12385088]
[1765402675904,0.04177719,137.43,137.4,0.05385088]
[1765402676399,6.5475,137.42,137.4,0.05385088]
[1765402676801,6.5475,137.42,137.4,3.12385088]
[1765402676995,6.5475,137.42,137.4,0.05385088]
[1765402678807,6.5494,137.38,137.33,3.07]
[1765402679902,0.05401393,137.37,137.35,3.07]
[1765402682107,101.8349,137.44,137.35,3.07]
[1765402682299,101.83,137.45,137.35,3.07]
[1765402682503,71.65987535,137.46,137.35,3.07]
[1765402682709,6.5463,137.45,137.39,3.07]
[1765402683103,0.04161414,137.43,137.42,3.07]
[1765402683302,0.04161414,137.43,137.41,0.05034664]
[1765402683506,0.04161414,137.43,137.41,3.12034664]
[1765402684907,6.58871414,137.43,137.41,0.05034664]
[1765402686218,6.58871414,137.43,137.41,3.18034664]
[1765402686515,0.04161414,137.43,137.41,3.18034664]
[1765402686712,0.04161414,137.43,137.41,0.05034664]
[1765402686913,6.5513,137.34,137.29,3.13]
[1765402687128,101.8862,137.37,137.29,3.13]
[1765402687314,111.74607535,137.37,137.29,3.13]
[1765402687508,6.5509,137.35,137.29,9.6835]
[1765402687709,6.5509,137.35,137.3,3.13]
[1765402687917,6.5509,137.35,137.29,6.5535]
[1765402687918,0.05180317,137.34,137.32,3.13]
[1765402688723,0.05180317,137.34,137.31,0.04724334]
[1765402688915,0.05180317,137.34,137.31,3.17724334]
[1765402689917,6.60320317,137.34,137.31,3.17724334]
[1765402690417,0.05180317,137.34,137.31,3.17724334]
[1765402691217,6.5496,137.38,137.33,3.31]
[1765402691814,101.8644,137.4,137.33,3.31]
[1765402692023,6.5492,137.39,137.33,3.31]
[1765402692318,0.04015761,137.37,137.35,0.04774807]
[1765402692613,0.04015761,137.37,137.35,3.35774807]
[1765402693728,6.59005761,137.37,137.35,0.04774807]
[1765402694821,6.551,137.35,137.31,3.31]
[1765402695019,0.04015761,137.37,137.31,3.31]
[1765402695516,0.04015761,137.37,137.34,3.31]
[1765402695718,0.04015761,137.37,137.34,3.36488657]
[1765402696516,0.04015761,137.37,137.35,3.31]
[1765402702231,6.5487,137.4,137.35,3.31]
[1765402703236,0.04774807,137.39,137.35,3.31]
[1765402703618,0.04774807,137.39,137.35,9.8607]
[1765402703832,0.04774807,137.39,137.36,3.31]
[1765402704833,0.04774807,137.39,137.36,6.31]
[1765402705039,6.5477,137.42,137.37,3.31]
[1765402705040,5.64928836,137.42,137.37,3.31]
[1765402705532,101.8295,137.45,137.37,3.31]
[1765402705834,107.47878836,137.45,137.37,3.31]
[1765402706026,5.64928836,137.45,137.4,3.35616029]
[1765402707239,61.8,137.46,137.4,3.35616029]
[1765402707842,5.64928836,137.45,137.4,0.04616029]
[1765402708047,107.47868836,137.45,137.4,0.04616029]
[1765402708427,6.5475,137.42,137.4,0.04616029]
[1765402709538,6.5475,137.42,137.4,3.35616029]
[1765402709833,6.5475,137.42,137.4,0.04616029]
[1765402710141,12.19678836,137.42,137.4,0.04616029]
[1765402715343,6.5475,137.42,137.4,3.20616029]
[1765402715533,6.5475,137.42,137.4,0.04616029]
[1765402715726,5.64928836,137.42,137.36,3.16]
[1765402716633,0.04616029,137.4,137.38,0.05089771]
[1765402716930,6.59456029,137.4,137.38,0.05089771]
[1765402717132,107.52078836,137.39,137.32,9.02440332]
[1765402717330,5.64928836,137.36,137.31,12.18440332]
[1765402717533,101.8715,137.39,137.33,3.16]
[1765402717534,5.64928836,137.39,137.33,3.16]
[1765402717733,5.64928836,137.39,137.33,12.18440332]
[1765402717934,5.64928836,137.39,137.33,3.16]
[1765402718135,0.05132995,137.37,137.35,3.21107288]
[1765402719038,2.37309538,137.47,137.39,3.16]
[1765402719230,6.5456,137.46,137.41,3.16]
[1765402719434,2.37309538,137.47,137.41,3.16]
[1765402719638,2.37309538,137.49,137.44,3.16]
[1765402719943,0.04572805,137.48,137.45,3.2063685]
[1765402721935,6.59032805,137.48,137.45,3.2063685]
[1765402722134,0.04572805,137.48,137.45,3.2063685]
[1765402724546,0.04572805,137.48,137.46,3.16]
[1765402725537,0.04572805,137.48,137.45,3.2063685]
[1765402728537,5.64141846,137.47,137.38,3.16]
[1765402728740,6.5469,137.43,137.38,3.16]
[1765402728941,5.64141846,137.47,137.38,3.16]
[1765402729135,5.64141846,137.47,137.39,3.16]
[1765402729342,6.5465,137.44,137.39,3.16]
[1765402729645,0.04949897,137.43,137.4,0.04771413]
[1765402730048,0.04949897,137.43,137.4,3.20771413]
[1765402730740,6.5475,137.42,137.4,3.20771413]
[1765402730936,0.04949897,137.43,137.4,3.20771413]
[1765402732442,5.64141846,137.5,137.43,3.16]
[1765402732646,107.40951846,137.53,137.44,3.16]
[1765402732844,101.7681,137.53,137.45,3.16]
[1765402733446,101.775,137.52,137.45,3.16]
[1765402733644,0.04259758,137.5,137.47,0.0500369]
[1765402733844,0.04259758,137.5,137.47,3.2100369]
[1765402738650,6.58629758,137.5,137.47,3.2100369]
[1765402740440,0.04259758,137.5,137.47,3.2100369]
[1765402740647,101.83519758,137.5,137.47,0.0500369]
[1765402740843,6.5441,137.49,137.47,0.0500369]
[1765402741045,0.04259758,137.5,137.47,0.0500369]
[1765402741046,0.04259758,137.5,137.47,3.2100369]
[1765402742755,2.41164853,137.5,137.47,3.2100369]
[1765402744055,2.36905095,137.56,137.5,3.34]
[1765402744761,6.5413,137.55,137.5,3.34]
[1765402745060,101.736,137.58,137.51,0.05514959]
[1765402745252,107.38258454,137.56,137.51,3.39514959]
[1765402745754,12.17888454,137.53,137.51,0.05514959]
[1765402746956,6.5423,137.53,137.51,0.05514959]
[1765402747359,12.17888454,137.53,137.51,0.05514959]
[1765402750558,103.01150056,137.56,137.51,3.17514959]
[1765402750559,101.746,137.56,137.51,3.17514959]
[1765402750753,5.63658454,137.57,137.51,3.17514959]
[1765402751149,6.5413,137.55,137.51,3.17514959]
[1765402752463,6.5418,137.54,137.51,3.17514959]
[1765402752649,101.7533,137.55,137.51,0.05514959]
[1765402753862,6.5424,137.53,137.51,0.05514959]
[1765402754562,6.5424,137.53,137.51,3.17514959]
[1765402754758,6.5416,137.55,137.51,3.17514959]
[1765402755157,61.74,137.58,137.51,3.17514959]
[1765402755963,6.5408,137.56,137.51,3.17514959]
[1765402756865,6.5408,137.56,137.51,9.71814959]
[1765402757060,6.5408,137.56,137.52,3.12]
[1765402758862,6.54,137.58,137.53,3.12]
[1765402759167,38.44545491,137.63,137.55,3.12]
[1765402759168,9.15673945,137.63,137.55,3.12]
[1765402759363,9.15673945,137.63,137.59,3.12]
[1765402760970,9.15673945,137.63,137.58,0.05198612]
[1765402760971,6.539,137.6,137.58,0.05198612]
[1765402761372,6.5387,137.61,137.59,3.12]
[1765402761765,166.93685491,137.63,137.58,0.05198612]
[1765402762162,6.5388,137.6,137.58,0.05198612]
[1765402765874,6.5393,137.59,137.58,0.05198612]
[1765402766272,105.21685491,137.63,137.58,3.17198612]
[1765402766478,21.85,137.7,137.59,3.12]
[1765402766773,8.72292716,137.75,137.59,3.12]
[1765402766774,101.5855,137.78,137.67,3.12]
[1765402766964,1.26407555,137.76,137.67,3.12]
[1765402767168,108.1067,137.79,137.71,0.05442817]
[1765402767473,29.64349362,137.79,137.71,3.17442817]
[1765402767668,6.5299,137.79,137.71,3.17442817]
[1765402767869,108.0941,137.81,137.71,3.17442817]
[1765402768074,108.0941,137.81,137.75,0.04940974]
[1765402768274,6.529,137.81,137.75,0.04940974]
[1765402768477,61.72,137.82,137.75,0.04940974]
[1765402768680,101.5681,137.8,137.75,0.04940974]
[1765402768868,101.5769,137.79,137.75,0.04940974]
[1765402769270,6.5307,137.77,137.75,0.04940974]
[1765402769973,6.5307,137.77,137.7,3.12]
[1765402769974,6.5316,137.76,137.7,3.12]
[1765402771075,0.04940974,137.74,137.72,3.170908]
[1765402771268,0.04940974,137.74,137.72,0.050908]
[1765402772078,6.5334,137.72,137.66,3.12]
[1765402772884,101.6418,137.7,137.63,3.12]
[1765402773074,101.6418,137.7,137.65,0.04907686]
[1765402773075,0.0539839,137.68,137.65,0.04907686]
[1765402773270,6.536,137.66,137.65,0.04907686]
[1765402775476,6.5368,137.65,137.6,3.12]
[1765402775672,101.7117839,137.68,137.6,3.12]
[1765402775673,101.6578,137.68,137.6,3.12]
[1765402775874,6.5363,137.66,137.6,3.12]
[1765402776475,0.05147173,137.64,137.62,3.2795248]
[1765402778176,0.05147173,137.64,137.62,0.0495248]
[1765402779488,0.05147173,137.64,137.62,3.2795248]
[1765402781587,0.05147173,137.64,137.62,0.0495248]
[1765402784589,6.58857173,137.64,137.62,0.0495248]
[1765402784986,101.74017173,137.64,137.56,3.23]
[1765402785993,101.74017173,137.64,137.59,0.04955904]
[1765402786378,0.05147173,137.64,137.59,3.27955904]
[1765402787387,0.05147173,137.64,137.62,3.23]
[1765402788891,0.05147173,137.64,137.62,9.7677]
[1765402789093,0.05147173,137.64,137.63,3.23]
[1765402790384,61.68,137.7,137.63,3.23]
[1765402791390,0.0471664,137.68,137.65,0.05102442]
[1765402791896,6.5824664,137.68,137.65,0.05102442]
[1765402792796,6.5824664,137.68,137.65,3.28102442]
[1765402794096,0.0471664,137.68,137.65,3.28102442]
[1765402794690,0.0471664,137.68,137.67,3.23]
[1765402794993,111.40865543,137.76,137.67,3.23]
[1765402795393,6.5327,137.73,137.69,3.23]
[1765402795588,101.6153,137.74,137.64,6.75338814]
[1765402795794,0.05232211,137.7,137.68,3.28199146]
[1765402795995,0.05004377,137.7,137.68,3.28199146]
[1765402800201,71.46775543,137.79,137.68,3.28199146]
[1765402800402,71.46775543,137.79,137.68,3.23]
[1765402800602,71.46775543,137.79,137.71,6.5334]
[1765402800794,71.46775543,137.79,137.68,3.23]
[1765402800795,101.5852,137.78,137.72,3.23]
[1765402801102,0.04702547,137.76,137.74,0.05036045]
[1765402801304,6.57872547,137.76,137.74,0.05036045]
[1765402803202,6.5332,137.72,137.67,3.23]
[1765402804095,0.05207002,137.71,137.68,0.04988193]
[1765402804802,6.5342,137.7,137.68,0.04988193]
[1765402808504,9.80775543,137.7,137.62,3.18]
[1765402809206,9.80775543,137.7,137.63,3.18]
[1765402809408,6.5351,137.68,137.63,3.18]
[1765402809708,0.05272173,137.67,137.64,3.23143933]
[1765402811915,9.80775543,137.73,137.66,3.18]
[1765402812204,6.5322,137.74,137.69,3.18]
[1765402812803,0.04568813,137.73,137.7,3.22818172]
[1765402816914,0.04568813,137.73,137.71,3.35]
[1765402817315,0.04568813,137.73,137.7,0.04818172]
[1765402817515,9.85344356,137.73,137.7,0.04818172]
[1765402818113,6.5332,137.72,137.7,0.04818172]
[1765402819525,0.04568813,137.73,137.7,3.39818172]
[1765402824920,0.04568813,137.73,137.7,0.04818172]
[1765402825125,0.04568813,137.73,137.7,3.39818172]
[1765402826430,0.04568813,137.73,137.7,6.39818172]
[1765402826631,0.04568813,137.73,137.71,3.35]
[1765402827433,0.04568813,137.73,137.7,0.04818172]
[1765402828837,0.04568813,137.73,137.7,3.39818172]
[1765402829337,6.57838813,137.73,137.7,3.39818172]
[1765402830043,6.5333,137.72,137.7,3.39818172]
[1765402830935,6.5336,137.71,137.7,0.04818172]
[1765402831752,6.535,137.68,137.67,6.75338814]
[1765402832042,101.6395,137.71,137.64,10.10338814]
[1765402832235,101.6395,137.71,137.65,10.10338814]
[1765402832440,6.5343,137.7,137.66,3.35]
[1765402832638,6.5343,137.7,137.67,3.35]
[1765402832838,6.58615889,137.7,137.67,3.4020632]
[1765402833040,6.5346,137.69,137.67,3.4020632]
[1765402835238,6.5346,137.69,137.67,0.0520632]
[1765402835932,6.5364,137.65,137.64,6.75338814]
[1765402836136,6.5364,137.65,137.63,9.84338814]
[1765402836536,6.5364,137.65,137.63,3.09]
[1765402836741,6.5364,137.65,137.63,9.84338814]
[1765402837048,6.58716321,137.65,137.63,9.89791385]
[1765402838140,6.58716321,137.65,137.63,3.14452571]
[1765402838454,6.58716321,137.65,137.63,0.05452571]
[1765402840848,0.05076321,137.65,137.63,3.14452571]
[1765402843643,6.58746321,137.65,137.63,0.05452571]
[1765402844349,101.73266321,137.65,137.59,6.75338814]
[1765402844555,101.6819,137.65,137.59,6.75338814]
[1765402845055,6.5371,137.64,137.6,3.09]
[1765402845257,0.0473393,137.63,137.61,0.04615428]
[1765402845554,6.5848393,137.63,137.61,0.04615428]
[1765402847250,12.20521199,137.63,137.61,0.04615428]
[1765402847449,6.5391,137.6,137.57,3.09]
[1765402848254,6.5383,137.62,137.57,3.09]
[1765402848455,0.05143149,137.6,137.57,3.14540838]
[1765402848949,6.59033149,137.6,137.57,3.14540838]
[1765402852661,6.5393,137.59,137.57,3.14540838]
[1765402853460,6.5393,137.59,137.57,0.05540838]
[1765402854054,5.67180418,137.6,137.54,67.79]
[1765402854255,5.67180418,137.6,137.55,3.09]
[1765402854462,5.67180418,137.6,137.51,3.09]
[1765402854463,6.5418,137.54,137.51,3.09]
[1765402854967,6.59396142,137.54,137.51,3.14160886]
[1765402857464,6.5423,137.53,137.51,0.05160886]
[1765402860369,6.5437,137.5,137.45,3.09]
[1765402860673,101.7824,137.51,137.45,3.09]
[1765402861266,107.40277269,137.51,137.45,3.09]
[1765402861466,107.40277269,137.51,137.47,0.05491709]
[1765402861467,0.05012597,137.49,137.47,0.05491709]
[1765402862472,0.05012597,137.49,137.47,3.14491709]
[1765402862878,0.05012597,137.49,137.47,0.05491709]
[1765402863078,6.59452597,137.49,137.47,0.05491709]
[1765402866376,6.5428,137.52,137.47,3.28491709]
[1765402866771,5.62037269,137.52,137.47,0.05491709]
[1765402866982,6.5443,137.49,137.47,0.05491709]
[1765402867286,163.4882,137.53,137.47,3.28491709]
[1765402867493,0.05287766,137.51,137.47,3.28491709]
[1765402867991,6.59637766,137.51,137.47,3.28491709]
[1765402868389,6.5441,137.49,137.47,0.05491709]
[1765402869294,6.5441,137.49,137.47,3.28491709]
[1765402869689,6.5441,137.49,137.47,0.05491709]
[1765402869997,5.67325035,137.51,137.47,0.05491709]
[1765402870703,2.37004627,137.48,137.41,3.2]
[1765402870893,101.8077,137.48,137.41,3.2]
[1765402871089,2.37004627,137.44,137.41,3.2]
[1765402871284,8.91674627,137.44,137.41,3.2]
[1765402871597,2.37004627,137.46,137.41,3.2]
[1765402872194,0.05308221,137.45,137.43,3.2]
[1765402872888,0.05308221,137.45,137.42,3.25581686]
[1765402877202,0.05308221,137.45,137.43,3.2]
[1765402880510,6.5434,137.51,137.44,3.2]
[1765402880705,6.5434,137.51,137.45,3.2]
[1765402880913,5.64364731,137.54,137.45,3.2]
[1765402881205,101.7471,137.56,137.45,3.2]
[1765402881600,0.05491774,137.52,137.49,3.25151992]
[1765402883700,6.59771774,137.52,137.49,3.25151992]
[1765402884508,6.5431,137.51,137.49,3.25151992]
[1765402884697,6.5431,137.51,137.49,0.05151992]
[1765402884900,6.5431,137.51,137.49,3.25151992]
[1765402885402,0.05491774,137.52,137.49,3.25151992]
[1765402887106,6.5431,137.51,137.49,0.05151992]
[1765402887304,0.05491774,137.52,137.49,3.25151992]
[1765402888810,6.59751774,137.52,137.49,3.25151992]
[1765402889203,0.05491774,137.52,137.49,3.25151992]
[1765402891104,6.59791774,137.52,137.49,3.25151992]
[1765402892112,0.05491774,137.52,137.49,3.25151992]
[1765402892503,6.59751774,137.52,137.49,3.25151992]
[1765402894918,6.5431,137.51,137.49,3.25151992]
[1765402900409,6.59751774,137.52,137.49,3.25151992]
[1765402900718,0.05491774,137.52,137.49,3.25151992]
[1765402901711,0.05491774,137.52,137.49,0.05151992]
[1765402901917,3.70048846,137.51,137.49,0.05151992]
[1765402902415,6.5436,137.5,137.49,0.05151992]
[1765402903909,105.48618846,137.51,137.45,3.19]
[1765402904114,3.70048846,137.48,137.45,3.19]
[1765402904922,10.29938531,137.48,137.45,3.24087081]
[1765402905122,3.70048846,137.46,137.45,0.05087081]
[1765402906919,10.24598846,137.46,137.45,0.05087081]
[1765402909429,10.29928531,137.48,137.45,3.24087081]
[1765402912220,3.75438531,137.48,137.45,3.24087081]
[1765402913214,6.545,137.47,137.45,0.05087081]
[1765402913422,3.70048846,137.46,137.45,0.05087081]
[1765402913621,3.70048846,137.46,137.4,6.78754225]
[1765402913622,101.8277,137.45,137.4,6.78754225]
[1765402913831,10.24798846,137.42,137.41,3.19]
[1765402914530,3.70048846,137.42,137.41,3.19]
[1765402915927,0.05497432,137.43,137.41,3.19]
[1765402918424,6.60197432,137.43,137.41,3.19]
[1765402918826,0.05497432,137.43,137.41,3.19]
[1765402923132,3.70048846,137.42,137.4,0.05419747]
[1765402923527,105.55238846,137.42,137.35,3.19]
[1765402923722,3.70048846,137.4,137.36,3.19]